[Event "Early-Titled-Tuesday-Blitz-January-16-2024"]
[Site "Chess.com"]
[Date "2024.01.16"]
[Round "4"]
[White "m_ezat"]
[Black "missponyo10"]
[Result "1/2-1/2"]
[WhiteElo "2487"]
[BlackElo "2262"]
[TimeControl "180+1"]
[EndTime "8:43:05 PST"]
[Termination "Game drawn - insufficient material"]

1. e4 {[%clk 0:02:56.1]} 1... c5 {[%clk 0:02:59.5]} 2. d4 {[%clk 0:02:55.3]}
2... cxd4 {[%clk 0:02:59.1]} 3. c3 {[%clk 0:02:55.4]} 3... Nf6 {[%clk
0:02:59.1]} 4. e5 {[%clk 0:02:55.4]} 4... Nd5 {[%clk 0:02:59.6]} 5. Nf3 {[%clk
0:02:56]} 5... Nc6 {[%clk 0:02:59.2]} 6. Bc4 {[%clk 0:02:55.4]} 6... Nb6 {[%clk
0:02:59.4]} 7. Bb3 {[%clk 0:02:54.8]} 7... d5 {[%clk 0:02:59.6]} 8. O-O {[%clk
0:02:51.8]} 8... dxc3 {[%clk 0:02:55.4]} 9. Nxc3 {[%clk 0:02:51.1]} 9... e6
{[%clk 0:02:43.9]} 10. a4 {[%clk 0:02:47.2]} 10... a5 {[%clk 0:02:42.8]} 11. Nb5
{[%clk 0:02:46.1]} 11... Be7 {[%clk 0:02:42.6]} 12. Be3 {[%clk 0:02:45.5]} 12...
Nd7 {[%clk 0:02:42]} 13. Bf4 {[%clk 0:02:39.3]} 13... Nc5 {[%clk 0:02:41.3]} 14.
Bc2 {[%clk 0:02:38.5]} 14... Nb4 {[%clk 0:02:39.5]} 15. Rc1 {[%clk 0:02:30.7]}
15... Bd7 {[%clk 0:02:36.7]} 16. Nd6+ {[%clk 0:02:25.6]} 16... Bxd6 {[%clk
0:02:36.4]} 17. exd6 {[%clk 0:02:26.5]} 17... Nxc2 {[%clk 0:02:24.3]} 18. Qxc2
{[%clk 0:02:26.4]} 18... Ne4 {[%clk 0:02:24.9]} 19. Ne5 {[%clk 0:02:21.9]} 19...
O-O {[%clk 0:02:24.7]} 20. Rfd1 {[%clk 0:01:49.4]} 20... Nxd6 {[%clk 0:02:15.4]}
21. Qb3 {[%clk 0:01:42]} 21... Ne4 {[%clk 0:02:02.7]} 22. f3 {[%clk 0:01:37.4]}
22... Nf6 {[%clk 0:02:02.6]} 23. Bg5 {[%clk 0:01:36.6]} 23... Bc6 {[%clk
0:01:57.7]} 24. Ng4 {[%clk 0:01:35]} 24... Ra6 {[%clk 0:01:48.3]} 25. Bxf6
{[%clk 0:01:27.3]} 25... gxf6 {[%clk 0:01:49.2]} 26. Qe3 {[%clk 0:01:22.8]}
26... f5 {[%clk 0:01:44.6]} 27. Ne5 {[%clk 0:01:16.1]} 27... Qf6 {[%clk
0:01:36.2]} 28. f4 {[%clk 0:01:15]} 28... h6 {[%clk 0:01:30.5]} 29. b3 {[%clk
0:01:07]} 29... Kh7 {[%clk 0:01:29.5]} 30. Rc3 {[%clk 0:01:05.2]} 30... Rg8
{[%clk 0:01:28.2]} 31. Qd4 {[%clk 0:01:03.4]} 31... Qe7 {[%clk 0:01:00.5]} 32.
Rh3 {[%clk 0:00:57]} 32... f6 {[%clk 0:00:52.6]} 33. Nf3 {[%clk 0:00:51.8]}
33... Raa8 {[%clk 0:00:51.9]} 34. Qf2 {[%clk 0:00:48.5]} 34... Rg4 {[%clk
0:00:48.9]} 35. Nd4 {[%clk 0:00:45.2]} 35... Rag8 {[%clk 0:00:48.4]} 36. g3
{[%clk 0:00:45.1]} 36... Bd7 {[%clk 0:00:45.7]} 37. Re1 {[%clk 0:00:44.3]} 37...
Qd6 {[%clk 0:00:43.3]} 38. Kf1 {[%clk 0:00:32.7]} 38... e5 {[%clk 0:00:39.7]}
39. fxe5 {[%clk 0:00:29.1]} 39... fxe5 {[%clk 0:00:39.5]} 40. Nxf5 {[%clk
0:00:29.2]} 40... Qa6+ {[%clk 0:00:38.9]} 41. Kg1 {[%clk 0:00:28.5]} 41... Rf8
{[%clk 0:00:34]} 42. Rxh6+ {[%clk 0:00:16]} 42... Qxh6 {[%clk 0:00:32.7]} 43.
Nxh6 {[%clk 0:00:16.9]} 43... Rxf2 {[%clk 0:00:32.7]} 44. Nxg4 {[%clk 0:00:17]}
44... Rb2 {[%clk 0:00:31.3]} 45. Nxe5 {[%clk 0:00:17]} 45... Be8 {[%clk
0:00:31]} 46. Re3 {[%clk 0:00:17]} 46... d4 {[%clk 0:00:29.2]} 47. Rd3 {[%clk
0:00:17.1]} 47... b5 {[%clk 0:00:23.3]} 48. Rxd4 {[%clk 0:00:16]} 48... bxa4
{[%clk 0:00:23.2]} 49. bxa4 {[%clk 0:00:16.2]} 49... Rb4 {[%clk 0:00:23.3]} 50.
Rxb4 {[%clk 0:00:14.6]} 50... axb4 {[%clk 0:00:24.2]} 51. a5 {[%clk 0:00:15]}
51... Bb5 {[%clk 0:00:24.2]} 52. Nf3 {[%clk 0:00:12.8]} 52... b3 {[%clk
0:00:24.2]} 53. Nd2 {[%clk 0:00:13.2]} 53... b2 {[%clk 0:00:24.4]} 54. Kf2
{[%clk 0:00:12.5]} 54... Bd3 {[%clk 0:00:25]} 55. Ke3 {[%clk 0:00:11.3]} 55...
Ba6 {[%clk 0:00:17.8]} 56. Kd4 {[%clk 0:00:10.8]} 56... Kg6 {[%clk 0:00:18.2]}
57. Kc3 {[%clk 0:00:10.9]} 57... Kg5 {[%clk 0:00:18.9]} 58. Kxb2 {[%clk
0:00:11]} 58... Kg4 {[%clk 0:00:19.7]} 59. Kc3 {[%clk 0:00:11.2]} 59... Kh3
{[%clk 0:00:20.4]} 60. Kd4 {[%clk 0:00:11.6]} 60... Bc8 {[%clk 0:00:15.7]} 61.
Nf3 {[%clk 0:00:09.5]} 61... Kg2 {[%clk 0:00:15.1]} 62. Ke3 {[%clk 0:00:09.7]}
62... Bb7 {[%clk 0:00:13.6]} 63. h4 {[%clk 0:00:09.3]} 63... Bxf3 {[%clk
0:00:12.3]} 64. a6 {[%clk 0:00:09.4]} 64... Kxg3 {[%clk 0:00:11.8]} 65. h5
{[%clk 0:00:07.1]} 65... Bxh5 {[%clk 0:00:08.9]} 66. a7 {[%clk 0:00:07]} 66...
Bf3 {[%clk 0:00:09.2]} 67. Kd4 {[%clk 0:00:07.9]} 67... Ba8 {[%clk 0:00:10]} 68.
Ke5 {[%clk 0:00:08.8]} 68... Bf3 {[%clk 0:00:09.8]} 69. Kd6 {[%clk 0:00:09.7]}
69... Bg2 {[%clk 0:00:10.1]} 70. Kc7 {[%clk 0:00:10.6]} 70... Bf3 {[%clk
0:00:10.6]} 71. Kb8 {[%clk 0:00:11.5]} 71... Bg2 {[%clk 0:00:11.2]} 72. a8=Q
{[%clk 0:00:12.4]} 72... Bxa8 {[%clk 0:00:07.3]} 1/2-1/2

[Event "Early-Titled-Tuesday-Blitz-January-16-2024"]
[Site "Chess.com"]
[Date "2024.01.16"]
[Round "4"]
[White "Flawless_Fighter"]
[Black "viktorgen2021"]
[Result "0-1"]
[WhiteElo "2699"]
[BlackElo "2559"]
[TimeControl "180+1"]
[EndTime "8:43:18 PST"]
[Termination "viktorgen2021 won by checkmate"]

1. d4 {[%clk 0:03:00.9]} 1... Nf6 {[%clk 0:02:57.3]} 2. c4 {[%clk 0:02:59.4]}
2... g6 {[%clk 0:02:55.7]} 3. g3 {[%clk 0:02:59.1]} 3... Bg7 {[%clk 0:02:55.6]}
4. Bg2 {[%clk 0:02:59.8]} 4... O-O {[%clk 0:02:56.2]} 5. Nc3 {[%clk 0:02:59.5]}
5... d6 {[%clk 0:02:52.6]} 6. Nf3 {[%clk 0:02:59.3]} 6... Nc6 {[%clk 0:02:52.9]}
7. O-O {[%clk 0:02:59.5]} 7... a6 {[%clk 0:02:53.4]} 8. Re1 {[%clk 0:02:55.7]}
8... Bg4 {[%clk 0:02:47.4]} 9. h3 {[%clk 0:02:54.1]} 9... Bxf3 {[%clk
0:02:47.3]} 10. Bxf3 {[%clk 0:02:54.9]} 10... e5 {[%clk 0:02:48]} 11. d5 {[%clk
0:02:49.6]} 11... Nd4 {[%clk 0:02:42.6]} 12. Bg2 {[%clk 0:02:48.4]} 12... Nf5
{[%clk 0:02:28.3]} 13. Bd2 {[%clk 0:02:31.6]} 13... Re8 {[%clk 0:02:18.5]} 14.
Rc1 {[%clk 0:02:29.7]} 14... e4 {[%clk 0:02:18.5]} 15. Bg5 {[%clk 0:02:26.8]}
15... e3 {[%clk 0:02:18.1]} 16. g4 {[%clk 0:01:58.7]} 16... exf2+ {[%clk
0:02:10.6]} 17. Kxf2 {[%clk 0:01:59.6]} 17... Nxg4+ {[%clk 0:02:08.9]} 18. hxg4
{[%clk 0:01:57]} 18... Qxg5 {[%clk 0:02:06.5]} 19. e4 {[%clk 0:01:31.8]} 19...
Bd4+ {[%clk 0:02:01.2]} 20. Kf3 {[%clk 0:01:25]} 20... Qh4 {[%clk 0:00:42.7]}
21. Ke2 {[%clk 0:00:52.2]} 21... Qxg4+ {[%clk 0:00:24.3]} 22. Bf3 {[%clk
0:00:33.9]} 22... Qf4 {[%clk 0:00:19.2]} 23. Kd3 {[%clk 0:00:32]} 23... Bxc3
{[%clk 0:00:09]} 24. Rxc3 {[%clk 0:00:19.7]} 24... Qe5 {[%clk 0:00:09.1]} 25.
Kd2 {[%clk 0:00:13.5]} 25... Nd4 {[%clk 0:00:08.6]} 26. Bh1 {[%clk 0:00:02.9]}
26... Qf4+ {[%clk 0:00:08.7]} 27. Rce3 {[%clk 0:00:02.8]} 27... b5 {[%clk
0:00:05.6]} 28. Kc3 {[%clk 0:00:02.9]} 28... bxc4 {[%clk 0:00:03.5]} 29. Kxd4
{[%clk 0:00:02.2]} 29... Rab8 {[%clk 0:00:03.2]} 30. Kxc4 {[%clk 0:00:02.4]}
30... Qe5 {[%clk 0:00:03.5]} 31. Qd4 {[%clk 0:00:02.4]} 31... Qe7 {[%clk
0:00:03.3]} 32. Kc3 {[%clk 0:00:02.5]} 32... Qd7 {[%clk 0:00:03.6]} 33. Qc4
{[%clk 0:00:03]} 33... Rb5 {[%clk 0:00:02.2]} 34. Kd3 {[%clk 0:00:02.6]} 34...
Rc5 {[%clk 0:00:02.6]} 35. Qb3 {[%clk 0:00:02.8]} 35... Rc8 {[%clk 0:00:01.6]}
36. Kd2 {[%clk 0:00:03]} 36... Rb5 {[%clk 0:00:02.3]} 37. Qc2 {[%clk 0:00:02.9]}
37... c5 {[%clk 0:00:03.2]} 38. Rc3 {[%clk 0:00:03.6]} 38... c4 {[%clk
0:00:03.1]} 39. Re2 {[%clk 0:00:04.3]} 39... Rbc5 {[%clk 0:00:02.9]} 40. Bf3
{[%clk 0:00:05]} 40... Qh3 {[%clk 0:00:02.6]} 41. Kc1 {[%clk 0:00:05]} 41... Qg3
{[%clk 0:00:02.9]} 42. Qd1 {[%clk 0:00:05.5]} 42... Qf4+ {[%clk 0:00:03.1]} 43.
Rd2 {[%clk 0:00:05.9]} 43... Qe5 {[%clk 0:00:04]} 44. Kb1 {[%clk 0:00:05.9]}
44... Ra5 {[%clk 0:00:04.9]} 45. a3 {[%clk 0:00:06.4]} 45... Rb5 {[%clk
0:00:05]} 46. Ka2 {[%clk 0:00:07]} 46... Rcb8 {[%clk 0:00:05.4]} 47. Qc2 {[%clk
0:00:07.6]} 47... Rb3 {[%clk 0:00:05.1]} 48. Qc1 {[%clk 0:00:06.5]} 48... Rxc3
{[%clk 0:00:05.2]} 49. Qxc3 {[%clk 0:00:07.1]} 49... Qe7 {[%clk 0:00:04.5]} 50.
Qxc4 {[%clk 0:00:07.3]} 50... Qe5 {[%clk 0:00:04.8]} 51. Qc3 {[%clk 0:00:07.6]}
51... Qf4 {[%clk 0:00:04.7]} 52. Qd3 {[%clk 0:00:07.5]} 52... h5 {[%clk
0:00:05.2]} 53. Bd1 {[%clk 0:00:07.3]} 53... h4 {[%clk 0:00:05.5]} 54. Qe2
{[%clk 0:00:07]} 54... Re8 {[%clk 0:00:05.1]} 55. Rd4 {[%clk 0:00:06.9]} 55...
Qe5 {[%clk 0:00:04.9]} 56. Rd3 {[%clk 0:00:06.8]} 56... Qxe4 {[%clk 0:00:04.8]}
57. Qxe4 {[%clk 0:00:06.1]} 57... Rxe4 {[%clk 0:00:05.7]} 58. Rh3 {[%clk
0:00:05.6]} 58... g5 {[%clk 0:00:05.7]} 59. Bf3 {[%clk 0:00:05.6]} 59... Rf4
{[%clk 0:00:05.8]} 60. Bd1 {[%clk 0:00:05.3]} 60... f5 {[%clk 0:00:05.9]} 61.
Rc3 {[%clk 0:00:05]} 61... Kg7 {[%clk 0:00:05.8]} 62. Rc6 {[%clk 0:00:05]} 62...
g4 {[%clk 0:00:06.2]} 63. Rxd6 {[%clk 0:00:05.5]} 63... h3 {[%clk 0:00:06.8]}
64. Rd7+ {[%clk 0:00:05.8]} 64... Kg6 {[%clk 0:00:07.3]} 65. d6 {[%clk
0:00:06.7]} 65... Rd4 {[%clk 0:00:07.2]} 66. Bc2 {[%clk 0:00:05.6]} 66... h2
{[%clk 0:00:07.6]} 67. Rd8 {[%clk 0:00:03.8]} 67... h1=Q {[%clk 0:00:07.5]} 68.
d7 {[%clk 0:00:04.7]} 68... Qd5+ {[%clk 0:00:07.2]} 69. Bb3 {[%clk 0:00:05.4]}
69... Qxd7 {[%clk 0:00:06.5]} 70. Rg8+ {[%clk 0:00:04.2]} 70... Kh5 {[%clk
0:00:06.3]} 71. Rh8+ {[%clk 0:00:04.6]} 71... Kg5 {[%clk 0:00:06.8]} 72. Rg8+
{[%clk 0:00:05.1]} 72... Kf4 {[%clk 0:00:07.5]} 73. Rf8 {[%clk 0:00:05.5]} 73...
g3 {[%clk 0:00:08]} 74. Rg8 {[%clk 0:00:05.6]} 74... Rd3 {[%clk 0:00:08.2]} 75.
Bc4 {[%clk 0:00:04.6]} 75... Rd4 {[%clk 0:00:08.6]} 76. Bb3 {[%clk 0:00:04.6]}
76... a5 {[%clk 0:00:09.3]} 77. a4 {[%clk 0:00:04.5]} 77... Rxa4+ {[%clk
0:00:09.1]} 78. Bxa4 {[%clk 0:00:05]} 78... Qxa4+ {[%clk 0:00:09.9]} 79. Kb1
{[%clk 0:00:05.9]} 79... Qd1+ {[%clk 0:00:09.7]} 80. Ka2 {[%clk 0:00:06.5]}
80... Qd5+ {[%clk 0:00:10.4]} 81. Ka1 {[%clk 0:00:06.2]} 81... Qxg8 {[%clk
0:00:11.3]} 82. b4 {[%clk 0:00:06.5]} 82... g2 {[%clk 0:00:11.5]} 83. bxa5
{[%clk 0:00:06.2]} 83... g1=Q+ {[%clk 0:00:11.6]} 84. Kb2 {[%clk 0:00:07.1]}
84... Qf2+ {[%clk 0:00:11.4]} 85. Ka3 {[%clk 0:00:08]} 85... Qe3+ {[%clk
0:00:11.4]} 86. Kb4 {[%clk 0:00:08.9]} 86... Qgb3# {[%clk 0:00:11.2]} 0-1

[Event "Early-Titled-Tuesday-Blitz-January-16-2024"]
[Site "Chess.com"]
[Date "2024.01.16"]
[Round "4"]
[White "MITerryble"]
[Black "Sokoloco"]
[Result "1-0"]
[WhiteElo "3026"]
[BlackElo "2765"]
[TimeControl "180+1"]
[EndTime "8:43:19 PST"]
[Termination "MITerryble won by resignation"]

1. d4 {[%clk 0:03:00.9]} 1... d6 {[%clk 0:03:00.6]} 2. Nf3 {[%clk 0:03:00.9]}
2... g6 {[%clk 0:02:56.9]} 3. c3 {[%clk 0:02:59.5]} 3... Bg7 {[%clk 0:02:57.5]}
4. e4 {[%clk 0:02:59.6]} 4... Nf6 {[%clk 0:02:53]} 5. Bd3 {[%clk 0:02:56.2]}
5... O-O {[%clk 0:02:53.4]} 6. Bg5 {[%clk 0:02:56.1]} 6... h6 {[%clk 0:02:42]}
7. Bh4 {[%clk 0:02:55.8]} 7... Nbd7 {[%clk 0:02:33.8]} 8. O-O {[%clk 0:02:40.8]}
8... e5 {[%clk 0:02:33.3]} 9. Re1 {[%clk 0:02:36.2]} 9... c6 {[%clk 0:02:33.4]}
10. Na3 {[%clk 0:02:24.8]} 10... Qc7 {[%clk 0:02:33.5]} 11. Qd2 {[%clk
0:02:19.2]} 11... Re8 {[%clk 0:02:33.2]} 12. Rad1 {[%clk 0:02:17.1]} 12... Nh5
{[%clk 0:02:25.1]} 13. Bf1 {[%clk 0:02:09.5]} 13... b5 {[%clk 0:02:16.2]} 14. d5
{[%clk 0:02:01.8]} 14... a6 {[%clk 0:02:03]} 15. dxc6 {[%clk 0:01:59.9]} 15...
Qxc6 {[%clk 0:02:02.4]} 16. Nc2 {[%clk 0:01:49]} 16... Bf8 {[%clk 0:01:24.4]}
17. Nb4 {[%clk 0:01:49.1]} 17... Qc5 {[%clk 0:01:25]} 18. Rc1 {[%clk 0:01:36.6]}
18... a5 {[%clk 0:01:12.4]} 19. Nd5 {[%clk 0:01:35.5]} 19... Bb7 {[%clk
0:01:04.8]} 20. b4 {[%clk 0:01:35.8]} 20... Qc6 {[%clk 0:01:04.5]} 21. c4 {[%clk
0:01:35.7]} 21... bxc4 {[%clk 0:00:32.2]} 22. Rxc4 {[%clk 0:01:13.7]} 22... Qa4
{[%clk 0:00:32.6]} 23. b5 {[%clk 0:01:08.9]} 23... Qxb5 {[%clk 0:00:32.2]} 24.
Rc7 {[%clk 0:01:08.5]} 24... Qa4 {[%clk 0:00:23.9]} 25. Rxb7 {[%clk 0:00:34.3]}
25... Nc5 {[%clk 0:00:24.3]} 26. Rbb1 {[%clk 0:00:34.2]} 26... Reb8 {[%clk
0:00:22.7]} 27. Nc3 {[%clk 0:00:31.6]} 27... Qd7 {[%clk 0:00:21.3]} 28. Bc4
{[%clk 0:00:28.5]} 28... Nf4 {[%clk 0:00:20.8]} 29. Bg3 {[%clk 0:00:28.1]} 29...
Nh5 {[%clk 0:00:21]} 30. Bd5 {[%clk 0:00:24.1]} 30... Rxb1 {[%clk 0:00:21.1]}
31. Rxb1 {[%clk 0:00:25]} 31... Rc8 {[%clk 0:00:21.6]} 32. Ne1 {[%clk
0:00:17.2]} 32... Be7 {[%clk 0:00:21.6]} 33. Qxh6 {[%clk 0:00:11.1]} 33... Ne6
{[%clk 0:00:15.1]} 34. Ne2 {[%clk 0:00:05.8]} 34... Bf8 {[%clk 0:00:10.9]} 35.
Qd2 {[%clk 0:00:05.7]} 35... Kh7 {[%clk 0:00:09.9]} 36. Nf3 {[%clk 0:00:06.2]}
36... Bh6 {[%clk 0:00:10.2]} 37. Qd1 {[%clk 0:00:06.5]} 37... Nc5 {[%clk
0:00:09]} 38. Ne1 {[%clk 0:00:05.5]} 38... Nf6 {[%clk 0:00:07.3]} 39. Nc3 {[%clk
0:00:04.4]} 39... Qe7 {[%clk 0:00:05.6]} 40. Nd3 {[%clk 0:00:03.8]} 40... Ncd7
{[%clk 0:00:06]} 41. Ne2 {[%clk 0:00:02.7]} 41... Qd8 {[%clk 0:00:05.1]} 42. Ne1
{[%clk 0:00:03.1]} 42... Kg7 {[%clk 0:00:05.8]} 43. Bb3 {[%clk 0:00:02.9]} 43...
Nc5 {[%clk 0:00:06.2]} 44. Bh4 {[%clk 0:00:03.2]} 44... a4 {[%clk 0:00:06.3]}
45. Bd5 {[%clk 0:00:03.2]} 45... g5 {[%clk 0:00:06.6]} 46. Bg3 {[%clk
0:00:03.8]} 46... Qd7 {[%clk 0:00:06.9]} 47. Nc3 {[%clk 0:00:03.7]} 47... g4
{[%clk 0:00:07]} 48. Qe2 {[%clk 0:00:03.7]} 48... Nh5 {[%clk 0:00:07]} 49. Nd3
{[%clk 0:00:03.6]} 49... Na6 {[%clk 0:00:06.1]} 50. Nd1 {[%clk 0:00:03.5]} 50...
Nc7 {[%clk 0:00:05.2]} 51. Ne3 {[%clk 0:00:03.2]} 51... Bxe3 {[%clk 0:00:04.5]}
52. Qxe3 {[%clk 0:00:03.1]} 52... Nxd5 {[%clk 0:00:05]} 53. Qg5+ {[%clk
0:00:03.3]} 53... Kf8 {[%clk 0:00:05.5]} 54. exd5 {[%clk 0:00:02]} 54... Ng7
{[%clk 0:00:05.7]} 55. Qh6 {[%clk 0:00:02.4]} 55... Kg8 {[%clk 0:00:05.8]} 56.
Qf6 {[%clk 0:00:02.4]} 56... Re8 {[%clk 0:00:03.4]} 57. Ne1 {[%clk 0:00:02.7]}
57... e4 {[%clk 0:00:03.7]} 58. Qxd6 {[%clk 0:00:02.4]} 58... Qf5 {[%clk
0:00:04.3]} 59. Qf4 {[%clk 0:00:02.6]} 59... Qg6 {[%clk 0:00:05]} 60. Qe3 {[%clk
0:00:02.7]} 60... Nf5 {[%clk 0:00:05.2]} 61. Qe2 {[%clk 0:00:02.8]} 61... Nd4
{[%clk 0:00:05.7]} 62. Qd2 {[%clk 0:00:02.5]} 62... e3 {[%clk 0:00:06.3]} 63.
Qxd4 {[%clk 0:00:02.8]} 63... Qxb1 {[%clk 0:00:07]} 64. Qxg4+ {[%clk 0:00:03.1]}
64... Kf8 {[%clk 0:00:07.2]} 65. Qe2 {[%clk 0:00:01.8]} 65... exf2+ {[%clk
0:00:06.9]} 66. Qxf2 {[%clk 0:00:02.7]} 66... a3 {[%clk 0:00:05.8]} 67. h3
{[%clk 0:00:02.7]} 67... Qb4 {[%clk 0:00:04.7]} 68. d6 {[%clk 0:00:02.5]} 68...
Qb5 {[%clk 0:00:03.1]} 69. Kh2 {[%clk 0:00:02.8]} 69... Qd7 {[%clk 0:00:03.4]}
70. Qd4 {[%clk 0:00:02.2]} 70... Kg8 {[%clk 0:00:03.6]} 71. Qh4 {[%clk
0:00:02.1]} 71... Qe6 {[%clk 0:00:03.6]} 72. Nf3 {[%clk 0:00:02.7]} 72... Qg6
{[%clk 0:00:02.3]} 73. d7 {[%clk 0:00:02.5]} 73... Rf8 {[%clk 0:00:02.6]} 74.
d8=Q {[%clk 0:00:02.9]} 74... Rxd8 {[%clk 0:00:03.3]} 75. Qxd8+ {[%clk
0:00:03.6]} 75... Kg7 {[%clk 0:00:04.2]} 76. Qd4+ {[%clk 0:00:03.7]} 76... Kh7
{[%clk 0:00:04.4]} 77. Qh4+ {[%clk 0:00:03.4]} 77... Kg8 {[%clk 0:00:05]} 78.
Be5 {[%clk 0:00:03.8]} 78... f6 {[%clk 0:00:05.1]} 79. Bxf6 {[%clk 0:00:04.3]}
79... Qf5 {[%clk 0:00:01.8]} 80. Qg5+ {[%clk 0:00:03.9]} 80... Qxg5 {[%clk
0:00:02]} 81. Bxg5 {[%clk 0:00:04.8]} 81... Kg7 {[%clk 0:00:01.6]} 82. Bc1
{[%clk 0:00:05.7]} 82... Kg6 {[%clk 0:00:02.5]} 83. Bxa3 {[%clk 0:00:06]} 83...
Kf5 {[%clk 0:00:03.4]} 84. Bc1 {[%clk 0:00:06.9]} 84... Ke4 {[%clk 0:00:04.3]}
85. a4 {[%clk 0:00:07.4]} 85... Kd3 {[%clk 0:00:05.2]} 86. a5 {[%clk 0:00:08.3]}
86... Kc3 {[%clk 0:00:06.1]} 87. a6 {[%clk 0:00:08.8]} 1-0

[Event "Early-Titled-Tuesday-Blitz-January-16-2024"]
[Site "Chess.com"]
[Date "2024.01.16"]
[Round "4"]
[White "Volodar_Murzin"]
[Black "sokidze"]
[Result "0-1"]
[WhiteElo "2921"]
[BlackElo "2794"]
[TimeControl "180+1"]
[EndTime "8:43:23 PST"]
[Termination "sokidze won on time"]

1. d4 {[%clk 0:03:00.9]} 1... d5 {[%clk 0:02:58.7]} 2. Nf3 {[%clk 0:03:01.5]}
2... Nf6 {[%clk 0:02:58.9]} 3. Bf4 {[%clk 0:03:01.9]} 3... e6 {[%clk 0:02:58.5]}
4. e3 {[%clk 0:03:02.1]} 4... Bd6 {[%clk 0:02:59]} 5. Nbd2 {[%clk 0:03:02.3]}
5... O-O {[%clk 0:02:59.1]} 6. c3 {[%clk 0:03:02.2]} 6... c5 {[%clk 0:02:58]} 7.
Bd3 {[%clk 0:02:58]} 7... Bxf4 {[%clk 0:02:55.2]} 8. exf4 {[%clk 0:02:58.1]}
8... b6 {[%clk 0:02:55.5]} 9. Qe2 {[%clk 0:02:48.5]} 9... a5 {[%clk 0:02:55.4]}
10. O-O {[%clk 0:02:44.7]} 10... Ba6 {[%clk 0:02:54.2]} 11. Bxa6 {[%clk
0:02:44.5]} 11... Nxa6 {[%clk 0:02:53.6]} 12. Ne5 {[%clk 0:02:41.6]} 12... Qd6
{[%clk 0:02:35.2]} 13. Rac1 {[%clk 0:02:26.4]} 13... Nb8 {[%clk 0:02:10.5]} 14.
Ndf3 {[%clk 0:02:14.5]} 14... Nbd7 {[%clk 0:02:08.8]} 15. Rfd1 {[%clk
0:02:12.3]} 15... c4 {[%clk 0:02:04.7]} 16. a4 {[%clk 0:01:49.5]} 16... h6
{[%clk 0:01:18.8]} 17. Nd2 {[%clk 0:01:42.6]} 17... Rfc8 {[%clk 0:01:12.7]} 18.
Re1 {[%clk 0:01:39.2]} 18... Rab8 {[%clk 0:01:05.1]} 19. g3 {[%clk 0:01:36.5]}
19... b5 {[%clk 0:00:58.9]} 20. axb5 {[%clk 0:01:33.7]} 20... a4 {[%clk
0:00:59.3]} 21. Nf1 {[%clk 0:01:12.4]} 21... Rxb5 {[%clk 0:00:56.3]} 22. Ne3
{[%clk 0:01:13]} 22... Rcb8 {[%clk 0:00:55.4]} 23. Rc2 {[%clk 0:01:11.2]} 23...
Qb6 {[%clk 0:00:50.4]} 24. Nd1 {[%clk 0:00:41.1]} 24... Nxe5 {[%clk 0:00:39.7]}
25. fxe5 {[%clk 0:00:42]} 25... Nd7 {[%clk 0:00:39.8]} 26. f4 {[%clk 0:00:40.4]}
26... Re8 {[%clk 0:00:23.1]} 27. Qf2 {[%clk 0:00:23.1]} 27... f5 {[%clk
0:00:22]} 28. Ne3 {[%clk 0:00:23]} 28... Rb8 {[%clk 0:00:21.2]} 29. Ree2 {[%clk
0:00:20.5]} 29... a3 {[%clk 0:00:14.2]} 30. bxa3 {[%clk 0:00:19.2]} 30... Rb1+
{[%clk 0:00:14.5]} 31. Kg2 {[%clk 0:00:19.7]} 31... h5 {[%clk 0:00:12.6]} 32. h3
{[%clk 0:00:18.8]} 32... Rf8 {[%clk 0:00:04]} 33. Qf3 {[%clk 0:00:18.1]} 33...
g6 {[%clk 0:00:03.7]} 34. g4 {[%clk 0:00:18.8]} 34... hxg4 {[%clk 0:00:02.7]}
35. hxg4 {[%clk 0:00:19.7]} 35... fxg4 {[%clk 0:00:03.3]} 36. Qxg4 {[%clk
0:00:19.8]} 36... Kf7 {[%clk 0:00:03.6]} 37. Nxd5 {[%clk 0:00:18.3]} 37... Qc6
{[%clk 0:00:02.5]} 38. Qf3 {[%clk 0:00:17.4]} 38... Qxd5 {[%clk 0:00:02.7]} 39.
Qxd5 {[%clk 0:00:18]} 39... exd5 {[%clk 0:00:03.6]} 40. e6+ {[%clk 0:00:18.9]}
40... Ke7 {[%clk 0:00:04.5]} 41. exd7+ {[%clk 0:00:19.2]} 41... Kxd7 {[%clk
0:00:05.4]} 42. Kg3 {[%clk 0:00:14.6]} 42... Rb3 {[%clk 0:00:05.3]} 43. Re5
{[%clk 0:00:14.4]} 43... Kd6 {[%clk 0:00:05.5]} 44. Kg4 {[%clk 0:00:14.1]} 44...
Rxa3 {[%clk 0:00:05.3]} 45. Kg5 {[%clk 0:00:13.9]} 45... Ra1 {[%clk 0:00:05.5]}
46. Rg2 {[%clk 0:00:14.5]} 46... Rc1 {[%clk 0:00:05]} 47. Rg3 {[%clk 0:00:14.2]}
47... Rf1 {[%clk 0:00:05.2]} 48. Rg4 {[%clk 0:00:14.6]} 48... Rf3 {[%clk
0:00:03.8]} 49. Re1 {[%clk 0:00:09.8]} 49... Rxc3 {[%clk 0:00:03.5]} 50. Kxg6
{[%clk 0:00:10.3]} 50... Rf3 {[%clk 0:00:03.8]} 51. Kg5 {[%clk 0:00:10.2]} 51...
Rg8+ {[%clk 0:00:03.4]} 52. Kf5 {[%clk 0:00:10.9]} 52... Rf8+ {[%clk 0:00:02.6]}
53. Kg5 {[%clk 0:00:11.2]} 53... c3 {[%clk 0:00:03.1]} 54. Rc1 {[%clk 0:00:10]}
54... Rg8+ {[%clk 0:00:03.6]} 55. Kf5 {[%clk 0:00:10.3]} 55... Rf8+ {[%clk
0:00:04.3]} 56. Kg5 {[%clk 0:00:10.6]} 56... Kc6 {[%clk 0:00:02.3]} 57. Rh4
{[%clk 0:00:07.8]} 57... Kb5 {[%clk 0:00:02.2]} 58. Rh7 {[%clk 0:00:03.9]} 58...
Kc4 {[%clk 0:00:02.9]} 59. Rd7 {[%clk 0:00:03.1]} 59... Rg8+ {[%clk 0:00:01.9]}
60. Kf5 {[%clk 0:00:03.2]} 60... Rf8+ {[%clk 0:00:02.8]} 61. Ke5 {[%clk
0:00:03.8]} 61... Re3+ {[%clk 0:00:03.1]} 62. Kd6 {[%clk 0:00:03.7]} 62... Rf6+
{[%clk 0:00:03.8]} 63. Kc7 {[%clk 0:00:03.8]} 63... Rxf4 {[%clk 0:00:04.3]} 64.
Kb6 {[%clk 0:00:02.6]} 64... Rxd4 {[%clk 0:00:04.5]} 65. Rc7+ {[%clk 0:00:02.6]}
65... Kb3 {[%clk 0:00:05.1]} 66. Kb5 {[%clk 0:00:02.7]} 66... Rb4+ {[%clk
0:00:05.4]} 67. Ka5 {[%clk 0:00:03.2]} 67... Ra4+ {[%clk 0:00:06]} 68. Kb5
{[%clk 0:00:03.8]} 68... Rb4+ {[%clk 0:00:06.7]} 69. Ka5 {[%clk 0:00:04.5]}
69... Kb2 {[%clk 0:00:06.4]} 70. Kxb4 {[%clk 0:00:04.2]} 70... Kxc1 {[%clk
0:00:06.5]} 71. Rxc3+ {[%clk 0:00:04.8]} 71... Kd2 {[%clk 0:00:06.7]} 72. Rc8
{[%clk 0:00:03.3]} 72... d4 {[%clk 0:00:06.4]} 73. Rd8 {[%clk 0:00:03.7]} 73...
d3 {[%clk 0:00:05.8]} 74. Kb3 {[%clk 0:00:04.3]} 74... Re7 {[%clk 0:00:05.7]}
75. Rb8 {[%clk 0:00:03.6]} 75... Rc7 {[%clk 0:00:05.8]} 76. Kb2 {[%clk
0:00:02.8]} 76... Rc2+ {[%clk 0:00:05.1]} 77. Kb1 {[%clk 0:00:03.2]} 77... Rc6
{[%clk 0:00:05.2]} 78. Rb3 {[%clk 0:00:02]} 78... Ke2 {[%clk 0:00:05.1]} 79. Kb2
{[%clk 0:00:01.5]} 79... d2 {[%clk 0:00:05.4]} 0-1